Workbook

Sheet chasum
A1: F Y 2 4 C h a r t e r S c h o o l F T E a n d T u i t i o n (Q 3) | AD1: blank | CF1: derived | CJ1: derived | CK1: derived | CR1: derived
D7: F T E | J7: T U I T I O N | AA7: R A W C H A R T E R D A T A | AS7: S I B L I N G S | BA7: P R I V A T E / H O M E S C H O O L E D | CA7: P R I O R Y E A R A D J U S T M E N T S - includes siblings | CM7: P R I O R Y R S I B L I N G O N L Y A D J
A8: LEA | B8: CHARTER SCHOOL | C8: PROJECTED (MAXIMUM) FTE | D8: FTE IN EXCESS OF PROJECTION MAX | E8: TRANS- POR- TATION FTE | F8: SIBLING FTE | G8: REPORTED FTE | I8: FOUNDATION & ABOVE FOUND TUITION | J8: TRANSPOR- TATION TUITION | K8: FACILITILES TUITION | L8: TOTAL PAYMENT TO CHARTER | AA8: Lea | AB8: Total FTE | AC8: Cap'd FTE | AD8: Transp FTE | AE8: State Tuit Sib FTE | AF8: Unadj Local Tuition | AG8: Sibling Reduction | AH8: NSS Reduction | AI8: Local Base Tuition Payment | AJ8: Unadj Local Transp | AK8: Local Facilities Tuition | AL8: Total Local Payment | AM8: State Found & Above Found Tuition (sibs) | AN8: State Transp | AO8: State Facilities Tuition | AP8: Total State Payment | AQ8: Total Payment to Charter | AS8: LEA | AT8: Matched Sibling Headct | AU8: State Tuit Sib FTE | AV8: Foundation Tuition | AW8: Trans- portation | AX8: Facilities Tuition | AY8: Total Sibling Tuition | BA8: Priv/HS FTE | BB8: Priv/HS Base Payment | BC8: Priv/HS Transp | BD8: Priv/HS Facilities Tuition | BE8: Total Priv/HS Tuition | CA8: LEA | CB8: FTE | CC8: Local Found Adj | CD8: Local Transp Adj | CE8: Local Facilities Adj | CF8: TOTAL LOCAL Adj | CG8: State Found Adj | CH8: State Transp Adj | CI8: State Facilities Adj | CJ8: TOTAL STATE Adj | CK8: TOTAL PRIOR YEAR ADJ | CM8: LEA | CN8: FTE | CO8: Sibling Found Adj | CP8: Sibling Transp Adj | CQ8: Sibling Facilities Adj | CR8: TOTAL Sibling Adj
A10: 409 | B10: ALMA DEL MAR | C10: 1044 | D10: =IF(AC10=0,"",AC10) ->  | F10: =AU10 -> 0 | G10: =AB10 -> 1041 | I10: =AF10-AG10-AH10+AM10+CC10+CG10 -> 18437230 | J10: 0 | K10: =AK10+AO10+CE10+CI10 -> 1236708 | L10: =SUM(I10:K10) -> 19673938 | AA10: 409 | AB10: 1041 | AC10: 0 | AD10: 0 | AE10: 0 | AF10: 18437230 | AG10: 0 | AH10: 0 | AI10: 18437230 | AJ10: 0 | AK10: 1236708 | AL10: 19673938 | AM10: 0 | AN10: 0 | AO10: 0 | AP10: 0 | AQ10: 19673938 | AS10: 409 | AT10: 111 | AU10: 0 | AV10: 0 | AW10: 0 | AX10: 0 | AY10: 0 | BA10: 0 | BB10: 0 | BC10: 0 | BD10: 0 | BE10: 0 | CA10: 409 | CB10: 0 | CC10: 0 | CD10: 0 | CE10: 0 | CF10: =SUM(CC10:CE10) -> 0 | CG10: 0 | CH10: 0 | CI10: 0 | CJ10: =SUM(CG10:CI10) -> 0 | CK10: =CF10+CJ10 -> 0 | CM10: 409 | CR10: =SUM(CO10:CQ10) -> 0
A11: 410 | B11: EXCEL ACADEMY | C11: 1400 | D11: =IF(AC11=0,"",AC11) ->  | F11: =AU11 -> 0.6916945673 | G11: =AB11 -> 1363 | I11: =AF11-AG11-AH11+AM11+CC11+CG11 -> 30106533 | J11: 0 | K11: =AK11+AO11+CE11+CI11 -> 1619244 | L11: =SUM(I11:K11) -> 31725777 | AA11: 410 | AB11: 1363 | AC11: 0 | AD11: 0 | AE11: 0.6916945673 | AF11: 30106533 | AG11: 14502.02148 | AH11: 0 | AI11: 30092030.98 | AJ11: 0 | AK11: 1618424 | AL11: 31710454.98 | AM11: 14502.02148 | AN11: 0 | AO11: 820 | AP11: 15322.02148 | AQ11: 31725777 | AS11: 410 | AT11: 407 | AU11: 0.6916945673 | AV11: 14502.02148 | AW11: 0 | AX11: 820 | AY11: 15322.02148 | BA11: 0 | BB11: 0 | BC11: 0 | BD11: 0 | BE11: 0 | CA11: 410 | CB11: 0 | CC11: 0 | CD11: 0 | CE11: 0 | CF11: 0 | CG11: 0 | CH11: 0 | CI11: 0 | CJ11: 0 | CK11: 0 | CM11: 410 | CR11: =SUM(CO11:CQ11) -> 0
A12: 412 | B12: ACADEMY OF THE PACIFIC RIM | C12: 545 | F12: 0.4459313793 | G12: 440 | I12: 10662166 | J12: 0 | K12: 522720 | L12: 11184886 | AA12: 412 | AB12: 440 | AC12: 0 | AD12: 0 | AE12: 0.4459313793 | AF12: 10662166 | AG12: 9073.811706 | AH12: 0 | AI12: 10653092.19 | AJ12: 0 | AK12: 522192 | AL12: 11175284.19 | AM12: 9073.811706 | AN12: 0 | AO12: 528 | AP12: 9601.811706 | AQ12: 11184886 | AS12: 412 | AT12: 84 | AU12: 0.4459313793 | AV12: 9073.811706 | AW12: 0 | AX12: 528 | AY12: 9601.811706 | BA12: 0 | BB12: 0 | BC12: 0 | BD12: 0 | BE12: 0 | CA12: 412 | CB12: 0 | CC12: 0 | CD12: 0 | CE12: 0 | CF12: 0 | CG12: 0 | CH12: 0 | CI12: 0 | CJ12: 0 | CK12: 0 | CM12: 412 | CR12: 0
A13: 413 | B13: FOUR RIVERS | C13: 220 | F13: 0 | G13: 214 | I13: 4108604 | J13: 0 | K13: 254232 | L13: 4362836 | AA13: 413 | AB13: 214 | AC13: 0 | AD13: 0 | AE13: 0 | AF13: 4108604 | AG13: 0 | AH13: 0 | AI13: 4108604 | AJ13: 0 | AK13: 254232 | AL13: 4362836 | AM13: 0 | AN13: 0 | AO13: 0 | AP13: 0 | AQ13: 4362836 | AS13: 413 | AT13: 49 | AU13: 0 | AV13: 0 | AW13: 0 | AX13: 0 | AY13: 0 | BA13: 0 | BB13: 0 | BC13: 0 | BD13: 0 | BE13: 0 | CA13: 413 | CB13: 0 | CC13: 0 | CD13: 0 | CE13: 0 | CF13: 0 | CG13: 0 | CH13: 0 | CI13: 0 | CJ13: 0 | CK13: 0 | CM13: 413 | CR13: 0
A14: 414 | B14: BERKSHIRE ARTS AND TECHNOLOGY | C14: 363 | D14: 2 | F14: 0 | G14: 365 | I14: 6612856 | J14: 0 | K14: 431065 | L14: 7043921 | AA14: 414 | AB14: 365 | AC14: 2 | AD14: 0 | AE14: 0 | AF14: 6612856 | AG14: 0 | AH14: 0 | AI14: 6612856 | AJ14: 0 | AK14: 431065 | AL14: 7043921 | AM14: 0 | AN14: 0 | AO14: 0 | AP14: 0 | AQ14: 7043921 | AS14: 414 | AT14: 94 | AU14: 0 | AV14: 0 | AW14: 0 | AX14: 0 | AY14: 0 | BA14: 0 | BB14: 0 | BC14: 0 | BD14: 0 | BE14: 0 | CA14: 414 | CB14: 0 | CC14: 0 | CD14: 0 | CE14: 0 | CF14: 0 | CG14: 0 | CH14: 0 | CI14: 0 | CJ14: 0 | CK14: 0 | CM14: 414 | CR14: 0
A15: 416 | B15: BOSTON PREPARATORY | C15: 700 | F15: 0.7803799138 | G15: 695 | I15: 17881412 | J15: 0 | K15: 825660 | L15: 18707072 | AA15: 416 | AB15: 695 | AC15: 0 | AD15: 0 | AE15: 0.7803799138 | AF15: 17881412 | AG15: 16679.84028 | AH15: 0 | AI15: 17864732.16 | AJ15: 0 | AK15: 824736 | AL15: 18689468.16 | AM15: 16679.84028 | AN15: 0 | AO15: 924 | AP15: 17603.84028 | AQ15: 18707072 | AS15: 416 | AT15: 189 | AU15: 0.7803799138 | AV15: 16679.84028 | AW15: 0 | AX15: 924 | AY15: 17603.84028 | BA15: 0 | BB15: 0 | BC15: 0 | BD15: 0 | BE15: 0 | CA15: 416 | CB15: 0 | CC15: 0 | CD15: 0 | CE15: 0 | CF15: 0 | CG15: 0 | CH15: 0 | CI15: 0 | CJ15: 0 | CK15: 0 | CM15: 416 | CR15: 0
A16: 417 | B16: BRIDGE BOSTON | C16: 335 | F16: 0.5574142241 | G16: 334 | I16: 8365188 | J16: 0 | K16: 396792 | L16: 8761980 | AA16: 417 | AB16: 334 | AC16: 0 | AD16: 0 | AE16: 0.5574142241 | AF16: 8365188 | AG16: 13503.91699 | AH16: 0 | AI16: 8351684.083 | AJ16: 0 | AK16: 396132 | AL16: 8747816.083 | AM16: 13503.91699 | AN16: 0 | AO16: 660 | AP16: 14163.91699 | AQ16: 8761980 | AS16: 417 | AT16: 129 | AU16: 0.5574142241 | AV16: 13503.91699 | AW16: 0 | AX16: 660 | AY16: 14163.91699 | BA16: 0 | BB16: 0 | BC16: 0 | BD16: 0 | BE16: 0 | CA16: 417 | CB16: 0 | CC16: 0 | CD16: 0 | CE16: 0 | CF16: 0 | CG16: 0 | CH16: 0 | CI16: 0 | CJ16: 0 | CK16: 0 | CM16: 417 | CR16: 0
A17: 418 | B17: CHRISTA MCAULIFFE | C17: 345 | F17: 0 | G17: 289 | I17: 5212770 | J17: 0 | K17: 343332 | L17: 5556102 | AA17: 418 | AB17: 289 | AC17: 0 | AD17: 0 | AE17: 0 | AF17: 5212770 | AG17: 0 | AH17: 0 | AI17: 5212770 | AJ17: 0 | AK17: 343332 | AL17: 5556102 | AM17: 0 | AN17: 0 | AO17: 0 | AP17: 0 | AQ17: 5556102 | AS17: 418 | AT17: 1 | AU17: 0 | AV17: 0 | AW17: 0 | AX17: 0 | AY17: 0 | BA17: 0 | BB17: 0 | BC17: 0 | BD17: 0 | BE17: 0 | CA17: 418 | CB17: 0 | CC17: 0 | CD17: 0 | CE17: 0 | CF17: 0 | CG17: 0 | CH17: 0 | CI17: 0 | CJ17: 0 | CK17: 0 | CM17: 418 | CR17: 0
A18: 419 | B18: HELEN Y. DAVIS LEADERSHIP ACADEMY | C18: 175 | F18: 0.2229656897 | G18: 95 | I18: 2313236 | J18: 0 | K18: 112860 | L18: 2426096 | AA18: 419 | AB18: 95 | AC18: 0 | AD18: 0 | AE18: 0.2229656897 | AF18: 2313236 | AG18: 4190.863103 | AH18: 0 | AI18: 2309045.137 | AJ18: 0 | AK18: 112596 | AL18: 2421641.137 | AM18: 4190.863103 | AN18: 0 | AO18: 264 | AP18: 4454.863103 | AQ18: 2426096 | AS18: 419 | AT18: 6 | AU18: 0.2229656897 | AV18: 4190.863103 | AW18: 0 | AX18: 264 | AY18: 4454.863103 | BA18: 0 | BB18: 0 | BC18: 0 | BD18: 0 | BE18: 0 | CA18: 419 | CB18: 0 | CC18: 0 | CD18: 0 | CE18: 0 | CF18: 0 | CG18: 0 | CH18: 0 | CI18: 0 | CJ18: 0 | CK18: 0 | CM18: 419 | CR18: 0
A19: 420 | B19: BENJAMIN BANNEKER | C19: 347 | F19: 0.4687288776 | G19: 346 | I19: 10948405 | J19: 0 | K19: 411048 | L19: 11359453 | AA19: 420 | AB19: 346 | AC19: 0 | AD19: 0 | AE19: 0.4687288776 | AF19: 10948405 | AG19: 8031.669318 | AH19: 0 | AI19: 10940373.33 | AJ19: 0 | AK19: 410492 | AL19: 11350865.33 | AM19: 8031.669318 | AN19: 0 | AO19: 556 | AP19: 8587.669318 | AQ19: 11359453 | AS19: 420 | AT19: 31 | AU19: 0.4687288776 | AV19: 8031.669318 | AW19: 0 | AX19: 556 | AY19: 8587.669318 | BA19: 0 | BB19: 0 | BC19: 0 | BD19: 0 | BE19: 0 | CA19: 420 | CB19: 0 | CC19: 0 | CD19: 0 | CE19: 0 | CF19: 0 | CG19: 0 | CH19: 0 | CI19: 0 | CJ19: 0 | CK19: 0 | CM19: 420 | CR19: 0
A20: 428 | B20: BROOKE | C20: 2221 | F20: 3.303910088 | G20: 2208 | I20: 51481687 | J20: 0 | K20: 2623103 | L20: 54104790 | AA20: 428 | AB20: 2208 | AC20: 0 | AD20: 0 | AE20: 3.303910088 | AF20: 51481687 | AG20: 63943.12349 | AH20: 0 | AI20: 51417743.88 | AJ20: 0 | AK20: 2619191 | AL20: 54036934.88 | AM20: 63943.12349 | AN20: 0 | AO20: 3913 | AP20: 67856.12349 | AQ20: 54104791 | AS20: 428 | AT20: 937 | AU20: 3.303910088 | AV20: 63943.12349 | AW20: 0 | AX20: 3913 | AY20: 67856.12349 | BA20: 0 | BB20: 0 | BC20: 0 | BD20: 0 | BE20: 0 | CA20: 428 | CB20: 0 | CC20: -24.35702117 | CD20: 0 | CE20: -2 | CF20: -26.35702117 | CG20: 24.35702116 | CH20: 0 | CI20: 1 | CJ20: 25.35702116 | CK20: -1.000000008 | CM20: 428 | CR20: 0
A21: 429 | B21: KIPP ACADEMY LYNN | C21: 1586 | D21: 29 | F21: 4.872754632 | G21: 1615 | I21: 27036135 | J21: 993388 | K21: 1884681 | L21: 29914204 | AA21: 429 | AB21: 1615 | AC21: 29 | AD21: 0 | AE21: 4.872754632 | AF21: 27036135 | AG21: 99287.10183 | AH21: 0 | AI21: 26936847.9 | AJ21: 0 | AK21: 1878899 | AL21: 28815746.9 | AM21: 99287.10183 | AN21: 0 | AO21: 5782 | AP21: 105069.1018 | AQ21: 28920816 | AS21: 429 | AT21: 633 | AU21: 4.872754632 | AV21: 99287.10183 | AW21: 0 | AX21: 5782 | AY21: 105069.1018 | BA21: 0 | BB21: 0 | BC21: 0 | BD21: 0 | BE21: 0 | CA21: 429 | CB21: 0 | CC21: -313.6161979 | CD21: 0 | CE21: -13 | CF21: -326.6161979 | CG21: 313.6161979 | CH21: 0 | CI21: 13 | CJ21: 326.6161979 | CK21: 4.074536264e-10 | CM21: 429 | CR21: 0
A22: 430 | B22: ADVANCED MATH AND SCIENCE ACADEMY | C22: 966 | F22: 0 | G22: 966 | I22: 15187811 | J22: 0 | K22: 1147608 | L22: 16335419 | AA22: 430 | AB22: 966 | AC22: 0 | AD22: 0 | AE22: 0 | AF22: 15187811 | AG22: 0 | AH22: 0 | AI22: 15187811 | AJ22: 0 | AK22: 1147608 | AL22: 16335419 | AM22: 0 | AN22: 0 | AO22: 0 | AP22: 0 | AQ22: 16335419 | AS22: 430 | AT22: 377 | AU22: 0 | AV22: 0 | AW22: 0 | AX22: 0 | AY22: 0 | BA22: 0 | BB22: 0 | BC22: 0 | BD22: 0 | BE22: 0 | CA22: 430 | CB22: 0 | CC22: 0 | CD22: 0 | CE22: 0 | CF22: 0 | CG22: 0 | CH22: 0 | CI22: 0 | CJ22: 0 | CK22: 0 | CM22: 430 | CR22: 0
A23: 432 | B23: CAPE COD LIGHTHOUSE | C23: 248 | D23: 3 | F23: 0 | G23: 251 | I23: 4533929 | J23: 0 | K23: 294674 | L23: 4828603 | AA23: 432 | AB23: 251 | AC23: 3 | AD23: 0 | AE23: 0 | AF23: 4533929 | AG23: 0 | AH23: 0 | AI23: 4533929 | AJ23: 0 | AK23: 294674 | AL23: 4828603 | AM23: 0 | AN23: 0 | AO23: 0 | AP23: 0 | AQ23: 4828603 | AS23: 432 | AT23: 71 | AU23: 0 | AV23: 0 | AW23: 0 | AX23: 0 | AY23: 0 | BA23: 0 | BB23: 0 | BC23: 0 | BD23: 0 | BE23: 0 | CA23: 432 | CB23: 0 | CC23: 0 | CD23: 0 | CE23: 0 | CF23: 0 | CG23: 0 | CH23: 0 | CI23: 0 | CJ23: 0 | CK23: 0 | CM23: 432 | CR23: 0
A24: 435 | B24: INNOVATION ACADEMY | C24: 800 | F24: 0 | G24: 788 | I24: 12176234 | J24: 0 | K24: 936144 | L24: 13112378 | AA24: 435 | AB24: 788 | AC24: 0 | AD24: 0 | AE24: 0 | AF24: 12176234 | AG24: 0 | AH24: 0 | AI24: 12176234 | AJ24: 0 | AK24: 936144 | AL24: 13112378 | AM24: 0 | AN24: 0 | AO24: 0 | AP24: 0 | AQ24: 13112378 | AS24: 435 | AT24: 150 | AU24: 0 | AV24: 0 | AW24: 0 | AX24: 0 | AY24: 0 | BA24: 0 | BB24: 0 | BC24: 0 | BD24: 0 | BE24: 0 | CA24: 435 | CB24: 0 | CC24: 0 | CD24: 0 | CE24: 0 | CF24: 0 | CG24: 0 | CH24: 0 | CI24: 0 | CJ24: 0 | CK24: 0 | CM24: 435 | CR24: 0
A25: 436 | B25: COMMUNITY CS OF CAMBRIDGE | C25: 319 | F25: 0.2229656897 | G25: 261 | I25: 8942725 | J25: 0 | K25: 310068 | L25: 9252793 | AA25: 436 | AB25: 261 | AC25: 0 | AD25: 0 | AE25: 0.2229656897 | AF25: 8942725 | AG25: 3563.437652 | AH25: 0 | AI25: 8939161.562 | AJ25: 0 | AK25: 309804 | AL25: 9248965.562 | AM25: 3563.437652 | AN25: 0 | AO25: 264 | AP25: 3827.437652 | AQ25: 9252793 | AS25: 436 | AT25: 55 | AU25: 0.2229656897 | AV25: 3563.437652 | AW25: 0 | AX25: 264 | AY25: 3827.437652 | BA25: 0 | BB25: 0 | BC25: 0 | BD25: 0 | BE25: 0 | CA25: 436 | CB25: 0 | CC25: 0 | CD25: 0 | CE25: 0 | CF25: 0 | CG25: 0 | CH25: 0 | CI25: 0 | CJ25: 0 | CK25: 0 | CM25: 436 | CR25: 0
A26: 437 | B26: CITY ON A HILL | C26: 230 | F26: 0.3344485345 | G26: 199 | I26: 5490207 | J26: 283969 | K26: 236412 | L26: 6010588 | AA26: 437 | AB26: 199 | AC26: 0 | AD26: 0 | AE26: 0.3344485345 | AF26: 5490207 | AG26: 8705.026455 | AH26: 0 | AI26: 5481501.974 | AJ26: 0 | AK26: 236016 | AL26: 5717517.974 | AM26: 8705.026455 | AN26: 0 | AO26: 396 | AP26: 9101.026455 | AQ26: 5726619 | AS26: 437 | AT26: 15 | AU26: 0.3344485345 | AV26: 8705.026455 | AW26: 0 | AX26: 396 | AY26: 9101.026455 | BA26: 0 | BB26: 0 | BC26: 0 | BD26: 0 | BE26: 0 | CA26: 437 | CB26: 0 | CC26: 0 | CD26: 0 | CE26: 0 | CF26: 0 | CG26: 0 | CH26: 0 | CI26: 0 | CJ26: 0 | CK26: 0 | CM26: 437 | CR26: 0
A27: 438 | B27: CODMAN ACADEMY | C27: 345 | F27: 0.5574142241 | G27: 336 | I27: 8776235 | J27: 0 | K27: 399168 | L27: 9175403 | AA27: 438 | AB27: 336 | AC27: 0 | AD27: 0 | AE27: 0.5574142241 | AF27: 8776235 | AG27: 14398.00941 | AH27: 0 | AI27: 8761836.991 | AJ27: 0 | AK27: 398508 | AL27: 9160344.991 | AM27: 14398.00941 | AN27: 0 | AO27: 660 | AP27: 15058.00941 | AQ27: 9175403 | AS27: 438 | AT27: 83 | AU27: 0.5574142241 | AV27: 14398.00941 | AW27: 0 | AX27: 660 | AY27: 15058.00941 | BA27: 0 | BB27: 0 | BC27: 0 | BD27: 0 | BE27: 0 | CA27: 438 | CB27: 0 | CC27: 0 | CD27: 0 | CE27: 0 | CF27: 0 | CG27: 0 | CH27: 0 | CI27: 0 | CJ27: 0 | CK27: 0 | CM27: 438 | CR27: 0
A28: 439 | B28: CONSERVATORY LAB | C28: 444 | F28: 0.4459313793 | G28: 444 | I28: 10818717 | J28: 0 | K28: 537243 | L28: 11355960 | AA28: 439 | AB28: 444 | AC28: 0 | AD28: 0 | AE28: 0.4459313793 | AF28: 10614394 | AG28: 9039.47499 | AH28: 0 | AI28: 10605354.53 | AJ28: 0 | AK28: 526944 | AL28: 11132298.53 | AM28: 9039.47499 | AN28: 0 | AO28: 528 | AP28: 9567.47499 | AQ28: 11141866 | AS28: 439 | AT28: 113 | AU28: 0.4459313793 | AV28: 9039.47499 | AW28: 0 | AX28: 528 | AY28: 9567.47499 | BA28: 0 | BB28: 0 | BC28: 0 | BD28: 0 | BE28: 0 | CA28: 439 | CB28: 8.98 | CC28: 204323 | CD28: 0 | CE28: 9771 | CF28: 214094 | CG28: 0 | CH28: 0 | CI28: 0 | CJ28: 0 | CK28: 214094 | CM28: 439 | CR28: 0
A29: 440 | B29: COMMUNITY DAY | C29: 1200 | F29: 0 | G29: 1200 | I29: 21044688 | J29: 713014 | K29: 1425600 | L29: 23183302 | AA29: 440 | AB29: 1200 | AC29: 0 | AD29: 0 | AE29: 0 | AF29: 21044688 | AG29: 0 | AH29: 0 | AI29: 21044688 | AJ29: 0 | AK29: 1425600 | AL29: 22470288 | AM29: 0 | AN29: 0 | AO29: 0 | AP29: 0 | AQ29: 22470288 | AS29: 440 | AT29: 192 | AU29: 0 | AV29: 0 | AW29: 0 | AX29: 0 | AY29: 0 | BA29: 0 | BB29: 0 | BC29: 0 | BD29: 0 | BE29: 0 | CA29: 440 | CB29: 0 | CC29: 0 | CD29: 0 | CE29: 0 | CF29: 0 | CG29: 0 | CH29: 0 | CI29: 0 | CJ29: 0 | CK29: 0 | CM29: 440 | CR29: 0
A30: 441 | B30: SPRINGFIELD INTERNATIONAL | C30: 1574 | F30: 0 | G30: 1478 | I30: 24395492 | J30: 0 | K30: 1755864 | L30: 26151356 | AA30: 441 | AB30: 1478 | AC30: 0 | AD30: 0 | AE30: 0 | AF30: 24395492 | AG30: 0 | AH30: 0 | AI30: 24395492 | AJ30: 0 | AK30: 1755864 | AL30: 26151356 | AM30: 0 | AN30: 0 | AO30: 0 | AP30: 0 | AQ30: 26151356 | AS30: 441 | AT30: 463 | AU30: 0 | AV30: 0 | AW30: 0 | AX30: 0 | AY30: 0 | BA30: 0 | BB30: 0 | BC30: 0 | BD30: 0 | BE30: 0 | CA30: 441 | CB30: 0 | CC30: 0 | CD30: 0 | CE30: 0 | CF30: 0 | CG30: 0 | CH30: 0 | CI30: 0 | CJ30: 0 | CK30: 0 | CM30: 441 | CR30: 0
A31: 444 | B31: NEIGHBORHOOD HOUSE | C31: 826 | D31: 30 | F31: 1.183333094 | G31: 856 | I31: 19760955 | J31: 0 | K31: 980987 | L31: 20741942 | AA31: 444 | AB31: 856 | AC31: 30 | AD31: 0 | AE31: 1.183333094 | AF31: 19760955 | AG31: 25029.01349 | AH31: 0 | AI31: 19735925.99 | AJ31: 0 | AK31: 979579 | AL31: 20715504.99 | AM31: 25029.01349 | AN31: 0 | AO31: 1408 | AP31: 26437.01349 | AQ31: 20741942 | AS31: 444 | AT31: 127 | AU31: 1.183333094 | AV31: 25029.01349 | AW31: 0 | AX31: 1408 | AY31: 26437.01349 | BA31: 0 | BB31: 0 | BC31: 0 | BD31: 0 | BE31: 0 | CA31: 444 | CB31: 0 | CC31: 0 | CD31: 0 | CE31: 0 | CF31: 0 | CG31: 0 | CH31: 0 | CI31: 0 | CJ31: 0 | CK31: 0 | CM31: 444 | CR31: 0
A32: 445 | B32: ABBY KELLEY FOSTER | C32: 1426 | F32: 0 | G32: 1421 | I32: 23347055 | J32: 1336070 | K32: 1688148 | L32: 26371273 | AA32: 445 | AB32: 1421 | AC32: 0 | AD32: 0 | AE32: 0 | AF32: 23347055 | AG32: 0 | AH32: 0 | AI32: 23347055 | AJ32: 0 | AK32: 1688148 | AL32: 25035203 | AM32: 0 | AN32: 0 | AO32: 0 | AP32: 0 | AQ32: 25035203 | AS32: 445 | AT32: 642 | AU32: 0 | AV32: 0 | AW32: 0 | AX32: 0 | AY32: 0 | BA32: 0 | BB32: 0 | BC32: 0 | BD32: 0 | BE32: 0 | CA32: 445 | CB32: 0 | CC32: 0 | CD32: 0 | CE32: 0 | CF32: 0 | CG32: 0 | CH32: 0 | CI32: 0 | CJ32: 0 | CK32: 0 | CM32: 445 | CR32: 0
A33: 446 | B33: FOXBOROUGH REGIONAL | C33: 1650 | F33: 1.895208362 | G33: 1520 | I33: 26390250 | J33: 0 | K33: 1805760 | L33: 28196010 | AA33: 446 | AB33: 1520 | AC33: 0 | AD33: 0 | AE33: 1.895208362 | AF33: 26390250 | AG33: 33404.94259 | AH33: 0 | AI33: 26356845.06 | AJ33: 0 | AK33: 1803516 | AL33: 28160361.06 | AM33: 33404.94259 | AN33: 0 | AO33: 2244 | AP33: 35648.94259 | AQ33: 28196010 | AS33: 446 | AT33: 239 | AU33: 1.895208362 | AV33: 33404.94259 | AW33: 0 | AX33: 2244 | AY33: 35648.94259 | BA33: 0 | BB33: 0 | BC33: 0 | BD33: 0 | BE33: 0 | CA33: 446 | CB33: 0 | CC33: 0 | CD33: 0 | CE33: 0 | CF33: 0 | CG33: 0 | CH33: 0 | CI33: 0 | CJ33: 0 | CK33: 0 | CM33: 446 | CR33: 0
A34: 447 | B34: BENJAMIN FRANKLIN CLASSICAL | C34: 897 | F34: 0 | G34: 888 | I34: 14864507 | J34: 0 | K34: 1054944 | L34: 15919451 | AA34: 447 | AB34: 888 | AC34: 0 | AD34: 0 | AE34: 0 | AF34: 14864507 | AG34: 0 | AH34: 0 | AI34: 14864507 | AJ34: 0 | AK34: 1054944 | AL34: 15919451 | AM34: 0 | AN34: 0 | AO34: 0 | AP34: 0 | AQ34: 15919451 | AS34: 447 | AT34: 214 | AU34: 0 | AV34: 0 | AW34: 0 | AX34: 0 | AY34: 0 | BA34: 0 | BB34: 0 | BC34: 0 | BD34: 0 | BE34: 0 | CA34: 447 | CB34: 0 | CC34: 0 | CD34: 0 | CE34: 0 | CF34: 0 | CG34: 0 | CH34: 0 | CI34: 0 | CJ34: 0 | CK34: 0 | CM34: 447 | CR34: 0
A35: 449 | B35: BOSTON COLLEGIATE | C35: 700 | F35: 0.4459313793 | G35: 688 | I35: 15164878 | J35: 0 | K35: 817344 | L35: 15982222 | AA35: 449 | AB35: 688 | AC35: 0 | AD35: 0 | AE35: 0.4459313793 | AF35: 15164878 | AG35: 7443.486583 | AH35: 0 | AI35: 15157434.51 | AJ35: 0 | AK35: 816816 | AL35: 15974250.51 | AM35: 7443.486583 | AN35: 0 | AO35: 528 | AP35: 7971.486583 | AQ35: 15982222 | AS35: 449 | AT35: 160 | AU35: 0.4459313793 | AV35: 7443.486583 | AW35: 0 | AX35: 528 | AY35: 7971.486583 | BA35: 0 | BB35: 0 | BC35: 0 | BD35: 0 | BE35: 0 | CA35: 449 | CB35: 0 | CC35: 0 | CD35: 0 | CE35: 0 | CF35: 0 | CG35: 0 | CH35: 0 | CI35: 0 | CJ35: 0 | CK35: 0 | CM35: 449 | CR35: 0
A36: 450 | B36: HILLTOWN COOPERATIVE | C36: 218 | F36: 0 | G36: 217 | I36: 3269763 | J36: 0 | K36: 257796 | L36: 3527559 | AA36: 450 | AB36: 217 | AC36: 0 | AD36: 0 | AE36: 0 | AF36: 3269763 | AG36: 0 | AH36: 0 | AI36: 3269763 | AJ36: 0 | AK36: 257796 | AL36: 3527559 | AM36: 0 | AN36: 0 | AO36: 0 | AP36: 0 | AQ36: 3527559 | AS36: 450 | AT36: 74 | AU36: 0 | AV36: 0 | AW36: 0 | AX36: 0 | AY36: 0 | BA36: 0 | BB36: 0 | BC36: 0 | BD36: 0 | BE36: 0 | CA36: 450 | CB36: 0 | CC36: 0 | CD36: 0 | CE36: 0 | CF36: 0 | CG36: 0 | CH36: 0 | CI36: 0 | CJ36: 0 | CK36: 0 | CM36: 450 | CR36: 0
A37: 453 | B37: HOLYOKE COMMUNITY | C37: 702 | F37: 0 | G37: 692 | I37: 12344263 | J37: 792900 | K37: 822096 | L37: 13959259 | AA37: 453 | AB37: 692 | AC37: 0 | AD37: 0 | AE37: 0 | AF37: 12344263 | AG37: 0 | AH37: 0 | AI37: 12344263 | AJ37: 0 | AK37: 822096 | AL37: 13166359 | AM37: 0 | AN37: 0 | AO37: 0 | AP37: 0 | AQ37: 13166359 | AS37: 453 | AT37: 124 | AU37: 0 | AV37: 0 | AW37: 0 | AX37: 0 | AY37: 0 | BA37: 0 | BB37: 0 | BC37: 0 | BD37: 0 | BE37: 0 | CA37: 453 | CB37: 0 | CC37: 0 | CD37: 0 | CE37: 0 | CF37: 0 | CG37: 0 | CH37: 0 | CI37: 0 | CJ37: 0 | CK37: 0 | CM37: 453 | CR37: 0
A38: 454 | B38: LAWRENCE FAMILY DEVELOPMENT | C38: 879 | F38: 0 | G38: 879 | I38: 15860800 | J38: 246087 | K38: 1044252 | L38: 17151139 | AA38: 454 | AB38: 879 | AC38: 0 | AD38: 0 | AE38: 0 | AF38: 15860800 | AG38: 0 | AH38: 0 | AI38: 15860800 | AJ38: 0 | AK38: 1044252 | AL38: 16905052 | AM38: 0 | AN38: 0 | AO38: 0 | AP38: 0 | AQ38: 16905052 | AS38: 454 | AT38: 5 | AU38: 0 | AV38: 0 | AW38: 0 | AX38: 0 | AY38: 0 | BA38: 0 | BB38: 0 | BC38: 0 | BD38: 0 | BE38: 0 | CA38: 454 | CB38: 0 | CC38: 0 | CD38: 0 | CE38: 0 | CF38: 0 | CG38: 0 | CH38: 0 | CI38: 0 | CJ38: 0 | CK38: 0 | CM38: 454 | CR38: 0
A39: 455 | B39: HILL VIEW MONTESSORI | C39: 306 | F39: 0 | G39: 304 | I39: 4364418 | J39: 0 | K39: 361152 | L39: 4725570 | AA39: 455 | AB39: 304 | AC39: 0 | AD39: 0 | AE39: 0 | AF39: 4364418 | AG39: 0 | AH39: 0 | AI39: 4364418 | AJ39: 0 | AK39: 361152 | AL39: 4725570 | AM39: 0 | AN39: 0 | AO39: 0 | AP39: 0 | AQ39: 4725570 | AS39: 455 | AT39: 76 | AU39: 0 | AV39: 0 | AW39: 0 | AX39: 0 | AY39: 0 | BA39: 0 | BB39: 0 | BC39: 0 | BD39: 0 | BE39: 0 | CA39: 455 | CB39: 0 | CC39: 0 | CD39: 0 | CE39: 0 | CF39: 0 | CG39: 0 | CH39: 0 | CI39: 0 | CJ39: 0 | CK39: 0 | CM39: 455 | CR39: 0
A40: 456 | B40: LOWELL COMMUNITY | C40: 815 | D40: 2 | F40: 0 | G40: 817 | I40: 14589471 | J40: 0 | K40: 968145 | L40: 15557616 | AA40: 456 | AB40: 817 | AC40: 2 | AD40: 0 | AE40: 0 | AF40: 14589471 | AG40: 0 | AH40: 0 | AI40: 14589471 | AJ40: 0 | AK40: 968145 | AL40: 15557616 | AM40: 0 | AN40: 0 | AO40: 0 | AP40: 0 | AQ40: 15557616 | AS40: 456 | AT40: 95 | AU40: 0 | AV40: 0 | AW40: 0 | AX40: 0 | AY40: 0 | BA40: 0 | BB40: 0 | BC40: 0 | BD40: 0 | BE40: 0 | CA40: 456 | CB40: 0 | CC40: 0 | CD40: 0 | CE40: 0 | CF40: 0 | CG40: 0 | CH40: 0 | CI40: 0 | CJ40: 0 | CK40: 0 | CM40: 456 | CR40: 0
A41: 458 | B41: LOWELL MIDDLESEX ACADEMY | C41: 120 | F41: 0 | G41: 106 | I41: 1937844 | J41: 0 | K41: 125928 | L41: 2063772 | AA41: 458 | AB41: 106 | AC41: 0 | AD41: 0 | AE41: 0 | AF41: 1937844 | AG41: 0 | AH41: 0 | AI41: 1937844 | AJ41: 0 | AK41: 125928 | AL41: 2063772 | AM41: 0 | AN41: 0 | AO41: 0 | AP41: 0 | AQ41: 2063772 | AS41: 458 | AT41: 0 | AU41: 0 | AV41: 0 | AW41: 0 | AX41: 0 | AY41: 0 | BA41: 0 | BB41: 0 | BC41: 0 | BD41: 0 | BE41: 0 | CA41: 458 | CB41: 0 | CC41: 0 | CD41: 0 | CE41: 0 | CF41: 0 | CG41: 0 | CH41: 0 | CI41: 0 | CJ41: 0 | CK41: 0 | CM41: 458 | CR41: 0
A42: 463 | B42: KIPP ACADEMY BOSTON | C42: 588 | D42: 3 | F42: 0.6655016524 | G42: 591 | I42: 14786550 | J42: 0 | K42: 698562 | L42: 15485112 | AA42: 463 | AB42: 591 | AC42: 3 | AD42: 0 | AE42: 0.6655016524 | AF42: 14786550 | AG42: 13446.83778 | AH42: 0 | AI42: 14773103.16 | AJ42: 0 | AK42: 697770 | AL42: 15470873.16 | AM42: 13446.83778 | AN42: 0 | AO42: 792 | AP42: 14238.83778 | AQ42: 15485112 | AS42: 463 | AT42: 175 | AU42: 0.6655016524 | AV42: 13446.83778 | AW42: 0 | AX42: 792 | AY42: 14238.83778 | BA42: 0 | BB42: 0 | BC42: 0 | BD42: 0 | BE42: 0 | CA42: 463 | CB42: 0 | CC42: 0 | CD42: 0 | CE42: 0 | CF42: 0 | CG42: 0 | CH42: 0 | CI42: 0 | CJ42: =SUM(CG42:CI42) -> 0 | CK42: =CF42+CJ42 -> 0 | CM42: 463 | CR42: 0
A43: 464 | B43: MARBLEHEAD COMMUNITY | C43: 224 | F43: 1.085895258 | G43: 175 | I43: 2989262 | J43: 0 | K43: 207900 | L43: 3197162 | AA43: 464 | AB43: 175 | AC43: 0 | AD43: 0 | AE43: 1.085895258 | AF43: 2989262 | AG43: 20196.09869 | AH43: 0 | AI43: 2969065.901 | AJ43: 0 | AK43: 206613 | AL43: 3175678.901 | AM43: 20196.09869 | AN43: 0 | AO43: 1287 | AP43: 21483.09869 | AQ43: 3197162 | AS43: 464 | AT43: 19 | AU43: 1.085895258 | AV43: 20196.09869 | AW43: 0 | AX43: 1287 | AY43: 21483.09869 | BA43: 0 | BB43: 0 | BC43: 0 | BD43: 0 | BE43: 0 | CA43: 464 | CB43: 0 | CC43: -21.6015179 | CD43: 0 | CE43: -2 | CF43: -23.6015179 | CG43: 21.6015179 | CH43: 0 | CI43: 2 | CJ43: 23.6015179 | CK43: 2.910383046e-11 | CM43: 464 | CR43: 0
A44: 466 | B44: MARTHA'S VINEYARD | C44: 180 | F44: 6.617756568 | G44: 175 | I44: 5044337 | J44: 0 | K44: 207900 | L44: 5252237 | AA44: 466 | AB44: 175 | AC44: 0 | AD44: 0 | AE44: 6.617756568 | AF44: 5044337 | AG44: 190812.5594 | AH44: 0 | AI44: 4853524.441 | AJ44: 0 | AK44: 200060 | AL44: 5053584.441 | AM44: 190812.5594 | AN44: 0 | AO44: 7840 | AP44: 198652.5594 | AQ44: 5252237 | AS44: 466 | AT44: 27 | AU44: 6.617756568 | AV44: 190812.5594 | AW44: 0 | AX44: 7840 | AY44: 198652.5594 | BA44: 0 | BB44: 0 | BC44: 0 | BD44: 0 | BE44: 0 | CA44: 466 | CB44: 0 | CC44: 0 | CD44: 0 | CE44: 0 | CF44: 0 | CG44: 0 | CH44: 0 | CI44: 0 | CJ44: 0 | CK44: 0 | CM44: 466 | CR44: 0
A45: 469 | B45: MATCH | C45: 1225 | F45: 1.226311293 | G45: 1185 | I45: 30218029 | J45: 0 | K45: 1407780 | L45: 31625809 | AA45: 469 | AB45: 1185 | AC45: 0 | AD45: 0 | AE45: 1.226311293 | AF45: 30218029 | AG45: 24285.86885 | AH45: 0 | AI45: 30193743.13 | AJ45: 0 | AK45: 1406328 | AL45: 31600071.13 | AM45: 24285.86885 | AN45: 0 | AO45: 1452 | AP45: 25737.86885 | AQ45: 31625809 | AS45: 469 | AT45: 414 | AU45: 1.226311293 | AV45: 24285.86885 | AW45: 0 | AX45: 1452 | AY45: 25737.86885 | BA45: 0 | BB45: 0 | BC45: 0 | BD45: 0 | BE45: 0 | CA45: 469 | CB45: 0 | CC45: 0 | CD45: 0 | CE45: 0 | CF45: 0 | CG45: 0 | CH45: 0 | CI45: 0 | CJ45: 0 | CK45: 0 | CM45: 469 | CR45: 0
A46: 470 | B46: MYSTIC VALLEY REGIONAL | C46: 1686 | F46: 11.36667528 | G46: 1653 | I46: 25466386 | J46: 78510 | K46: 1963764 | L46: 27508660 | AA46: 470 | AB46: 1653 | AC46: 0 | AD46: 0 | AE46: 11.36667528 | AF46: 25466386 | AG46: 177524.7346 | AH46: 0 | AI46: 25288861.27 | AJ46: 0 | AK46: 1950281 | AL46: 27239142.27 | AM46: 177524.7346 | AN46: 0 | AO46: 13483 | AP46: 191007.7346 | AQ46: 27430150 | AS46: 470 | AT46: 700 | AU46: 11.36667528 | AV46: 177524.7346 | AW46: 0 | AX46: 13483 | AY46: 191007.7346 | BA46: 0 | BB46: 0 | BC46: 0 | BD46: 0 | BE46: 0 | CA46: 470 | CB46: 0 | CC46: 0 | CD46: 0 | CE46: 0 | CF46: 0 | CG46: 0 | CH46: 0 | CI46: 0 | CJ46: 0 | CK46: 0 | CM46: 470 | CR46: 0
A47: 474 | B47: SIZER SCHOOL, A NORTH CENTRAL CHARTER ESSENTIAL SCHOOL | C47: 388 | F47: 0 | G47: 302 | I47: 4841713 | J47: 0 | K47: 358776 | L47: 5200489 | AA47: 474 | AB47: 302 | AC47: 0 | AD47: 0 | AE47: 0 | AF47: 4841713 | AG47: 0 | AH47: 0 | AI47: 4841713 | AJ47: 0 | AK47: 358776 | AL47: 5200489 | AM47: 0 | AN47: 0 | AO47: 0 | AP47: 0 | AQ47: 5200489 | AS47: 474 | AT47: 6 | AU47: 0 | AV47: 0 | AW47: 0 | AX47: 0 | AY47: 0 | BA47: 0 | BB47: 0 | BC47: 0 | BD47: 0 | BE47: 0 | CA47: 474 | CB47: 0 | CC47: 0 | CD47: 0 | CE47: 0 | CF47: 0 | CG47: 0 | CH47: 0 | CI47: 0 | CJ47: 0 | CK47: 0 | CM47: 474 | CR47: 0
A48: 478 | B48: FRANCIS W. PARKER CHARTER ESSENTIAL | C48: 400 | F48: 0 | G48: 370 | I48: 5956688 | J48: 0 | K48: 439560 | L48: 6396248 | AA48: 478 | AB48: 370 | AC48: 0 | AD48: 0 | AE48: 0 | AF48: 5956688 | AG48: 0 | AH48: 0 | AI48: 5956688 | AJ48: 0 | AK48: 439560 | AL48: 6396248 | AM48: 0 | AN48: 0 | AO48: 0 | AP48: 0 | AQ48: 6396248 | AS48: 478 | AT48: 97 | AU48: 0 | AV48: 0 | AW48: 0 | AX48: 0 | AY48: 0 | BA48: 0 | BB48: 0 | BC48: 0 | BD48: 0 | BE48: 0 | CA48: 478 | CB48: 0 | CC48: 0 | CD48: 0 | CE48: 0 | CF48: 0 | CG48: 0 | CH48: 0 | CI48: 0 | CJ48: 0 | CK48: 0 | CM48: 478 | CR48: 0
A49: 479 | B49: PIONEER VALLEY PERFORMING ARTS | C49: 399 | F49: 0 | G49: 399 | I49: 7057675 | J49: 0 | K49: 474012 | L49: 7531687 | AA49: 479 | AB49: 399 | AC49: 0 | AD49: 0 | AE49: 0 | AF49: 7057675 | AG49: 0 | AH49: 0 | AI49: 7057675 | AJ49: 0 | AK49: 474012 | AL49: 7531687 | AM49: 0 | AN49: 0 | AO49: 0 | AP49: 0 | AQ49: 7531687 | AS49: 479 | AT49: 44 | AU49: 0 | AV49: 0 | AW49: 0 | AX49: 0 | AY49: 0 | BA49: 0 | BB49: 0 | BC49: 0 | BD49: 0 | BE49: 0 | CA49: 479 | CB49: 0 | CC49: 0 | CD49: 0 | CE49: 0 | CF49: 0 | CG49: 0 | CH49: 0 | CI49: 0 | CJ49: 0 | CK49: 0 | CM49: 479 | CR49: 0
A50: 481 | B50: BOSTON RENAISSANCE | C50: 944 | F50: 1.560759828 | G50: 936 | I50: 22690166 | J50: 0 | K50: 1111968 | L50: 23802134 | AA50: 481 | AB50: 936 | AC50: 0 | AD50: 0 | AE50: 1.560759828 | AF50: 22690166 | AG50: 34133.81743 | AH50: 0 | AI50: 22656032.18 | AJ50: 0 | AK50: 1110120 | AL50: 23766152.18 | AM50: 34133.81743 | AN50: 0 | AO50: 1848 | AP50: 35981.81743 | AQ50: 23802134 | AS50: 481 | AT50: 196 | AU50: 1.560759828 | AV50: 34133.81743 | AW50: 0 | AX50: 1848 | AY50: 35981.81743 | BA50: 0 | BB50: 0 | BC50: 0 | BD50: 0 | BE50: 0 | CA50: 481 | CB50: 0 | CC50: 0 | CD50: 0 | CE50: 0 | CF50: 0 | CG50: 0 | CH50: 0 | CI50: 0 | CJ50: 0 | CK50: 0 | CM50: 481 | CR50: 0
A51: 482 | B51: RIVER VALLEY | C51: 286 | D51: 2 | F51: 0 | G51: 288 | I51: 4832479 | J51: 0 | K51: 339840 | L51: 5172319 | AA51: 482 | AB51: 288 | AC51: 2 | AD51: 0 | AE51: 0 | AF51: 4832479 | AG51: 0 | AH51: 0 | AI51: 4832479 | AJ51: 0 | AK51: 339840 | AL51: 5172319 | AM51: 0 | AN51: 0 | AO51: 0 | AP51: 0 | AQ51: 5172319 | AS51: 482 | AT51: 106 | AU51: 0 | AV51: 0 | AW51: 0 | AX51: 0 | AY51: 0 | BA51: 0 | BB51: 0 | BC51: 0 | BD51: 0 | BE51: 0 | CA51: 482 | CB51: 0 | CC51: 0 | CD51: 0 | CE51: 0 | CF51: 0 | CG51: 0 | CH51: 0 | CI51: 0 | CJ51: 0 | CK51: 0 | CM51: 482 | CR51: 0
A52: 483 | B52: RISING TIDE | C52: 700 | F52: 0 | G52: 623 | I52: 10689055 | J52: 0 | K52: 740124 | L52: 11429179 | AA52: 483 | AB52: 623 | AC52: 0 | AD52: 0 | AE52: 0 | AF52: 10689055 | AG52: 0 | AH52: 0 | AI52: 10689055 | AJ52: 0 | AK52: 740124 | AL52: 11429179 | AM52: 0 | AN52: 0 | AO52: 0 | AP52: 0 | AQ52: 11429179 | AS52: 483 | AT52: 104 | AU52: 0 | AV52: 0 | AW52: 0 | AX52: 0 | AY52: 0 | BA52: 0 | BB52: 0 | BC52: 0 | BD52: 0 | BE52: 0 | CA52: 483 | CB52: 0 | CC52: 0 | CD52: 0 | CE52: 0 | CF52: 0 | CG52: 0 | CH52: 0 | CI52: 0 | CJ52: 0 | CK52: 0 | CM52: 483 | CR52: 0
A53: 484 | B53: ROXBURY PREPARATORY | C53: 1300 | F53: 0.6802958181 | G53: 1137 | I53: 29832947 | J53: 0 | K53: 1350756 | L53: 31183703 | AA53: 484 | AB53: 1137 | AC53: 0 | AD53: 0 | AE53: 0.6802958181 | AF53: 29832947 | AG53: 15006.06611 | AH53: 0 | AI53: 29817940.93 | AJ53: 0 | AK53: 1349950 | AL53: 31167890.93 | AM53: 15006.06611 | AN53: 0 | AO53: 806 | AP53: 15812.06611 | AQ53: 31183703 | AS53: 484 | AT53: 96 | AU53: 0.6802958181 | AV53: 15006.06611 | AW53: 0 | AX53: 806 | AY53: 15812.06611 | BA53: 0 | BB53: 0 | BC53: 0 | BD53: 0 | BE53: 0 | CA53: 484 | CB53: 0 | CC53: 0 | CD53: 0 | CE53: 0 | CF53: 0 | CG53: 0 | CH53: 0 | CI53: 0 | CJ53: 0 | CK53: 0 | CM53: 484 | CR53: 0
A54: 485 | B54: SALEM ACADEMY | C54: 480 | D54: 8 | F54: 61.25351768 | G54: 488 | I54: 9061825 | J54: 0 | K54: 570472 | L54: 9632297 | AA54: 485 | AB54: 488 | AC54: 8 | AD54: 0 | AE54: 61.25351768 | AF54: 9061825 | AG54: 1161230.917 | AH54: 0 | AI54: 7900594.083 | AJ54: 0 | AK54: 497572 | AL54: 8398166.083 | AM54: 1161230.917 | AN54: 0 | AO54: 72900 | AP54: 1234130.917 | AQ54: 9632297 | AS54: 485 | AT54: 172 | AU54: 61.25351768 | AV54: 1161230.917 | AW54: 0 | AX54: 72900 | AY54: 1234130.917 | BA54: 0 | BB54: 0 | BC54: 0 | BD54: 0 | BE54: 0 | CA54: 485 | CB54: 0 | CC54: -3484.919427 | CD54: 0 | CE54: -150 | CF54: -3634.919427 | CG54: 3484.919427 | CH54: 0 | CI54: 150 | CJ54: 3634.919427 | CK54: -1.699663699e-08 | CM54: 485 | CR54: 0
A55: 486 | B55: LEARNING FIRST | C55: 666 | D55: 1 | F55: 0 | G55: 667 | I55: 11693286 | J55: 948439 | K55: 791062 | L55: 13432787 | AA55: 486 | AB55: 667 | AC55: 1 | AD55: 0 | AE55: 0 | AF55: 11693286 | AG55: 0 | AH55: 0 | AI55: 11693286 | AJ55: 0 | AK55: 791062 | AL55: 12484348 | AM55: 0 | AN55: 0 | AO55: 0 | AP55: 0 | AQ55: 12484348 | AS55: 486 | AT55: 292 | AU55: 0 | AV55: 0 | AW55: 0 | AX55: 0 | AY55: 0 | BA55: 0 | BB55: 0 | BC55: 0 | BD55: 0 | BE55: 0 | CA55: 486 | CB55: 0 | CC55: 0 | CD55: 0 | CE55: 0 | CF55: 0 | CG55: 0 | CH55: 0 | CI55: 0 | CJ55: 0 | CK55: 0 | CM55: 486 | CR55: 0
A56: 487 | B56: PROSPECT HILL ACADEMY | C56: 1125 | F56: 3.135423051 | G56: 917 | I56: 21284327 | J56: 0 | K56: 1089396 | L56: 22373723 | AA56: 487 | AB56: 917 | AC56: 0 | AD56: 0 | AE56: 3.135423051 | AF56: 21284327 | AG56: 57346.16152 | AH56: 0 | AI56: 21226980.84 | AJ56: 0 | AK56: 1085678 | AL56: 22312658.84 | AM56: 57346.16152 | AN56: 0 | AO56: 3718 | AP56: 61064.16152 | AQ56: 22373723 | AS56: 487 | AT56: 314 | AU56: 3.135423051 | AV56: 57346.16152 | AW56: 0 | AX56: 3718 | AY56: 61064.16152 | BA56: 0 | BB56: 0 | BC56: 0 | BD56: 0 | BE56: 0 | CA56: 487 | CB56: 0 | CC56: 0 | CD56: 0 | CE56: 0 | CF56: 0 | CG56: 0 | CH56: 0 | CI56: 0 | CJ56: 0 | CK56: 0 | CM56: 487 | CR56: 0
A57: 488 | B57: SOUTH SHORE | C57: 1075 | F57: 17.50280664 | G57: 1055 | I57: 18069802 | J57: 0 | K57: 1253340 | L57: 19323142 | AA57: 488 | AB57: 1055 | AC57: 0 | AD57: 0 | AE57: 17.50280664 | AF57: 18069802 | AG57: 355324.4776 | AH57: 0 | AI57: 17714477.52 | AJ57: 0 | AK57: 1232616 | AL57: 18947093.52 | AM57: 355324.4776 | AN57: 0 | AO57: 20724 | AP57: 376048.4776 | AQ57: 19323142 | AS57: 488 | AT57: 464 | AU57: 17.50280664 | AV57: 355324.4776 | AW57: 0 | AX57: 20724 | AY57: 376048.4776 | BA57: 0 | BB57: 0 | BC57: 0 | BD57: 0 | BE57: 0 | CA57: 488 | CB57: 0 | CC57: 0 | CD57: 0 | CE57: 0 | CF57: 0 | CG57: 0 | CH57: 0 | CI57: 0 | CJ57: 0 | CK57: 0 | CM57: 488 | CR57: 0
A58: 489 | B58: STURGIS | C58: 837 | F58: 0 | G58: 826 | I58: 16723899 | J58: 0 | K58: 981288 | L58: 17705187 | AA58: 489 | AB58: 826 | AC58: 0 | AD58: 0 | AE58: 0 | AF58: 16723899 | AG58: 0 | AH58: 0 | AI58: 16723899 | AJ58: 0 | AK58: 981288 | AL58: 17705187 | AM58: 0 | AN58: 0 | AO58: 0 | AP58: 0 | AQ58: 17705187 | AS58: 489 | AT58: 207 | AU58: 0 | AV58: 0 | AW58: 0 | AX58: 0 | AY58: 0 | BA58: 0 | BB58: 0 | BC58: 0 | BD58: 0 | BE58: 0 | CA58: 489 | CB58: 0 | CC58: 0 | CD58: 0 | CE58: 0 | CF58: 0 | CG58: 0 | CH58: 0 | CI58: 0 | CJ58: 0 | CK58: 0 | CM58: 489 | CR58: 0
A59: 491 | B59: ATLANTIS | C59: 1310 | F59: 0 | G59: 1257 | I59: 21336988 | J59: 0 | K59: 1493316 | L59: 22830304 | AA59: 491 | AB59: 1257 | AC59: 0 | AD59: 0 | AE59: 0 | AF59: 21336988 | AG59: 0 | AH59: 0 | AI59: 21336988 | AJ59: 0 | AK59: 1493316 | AL59: 22830304 | AM59: 0 | AN59: 0 | AO59: 0 | AP59: 0 | AQ59: 22830304 | AS59: 491 | AT59: 512 | AU59: 0 | AV59: 0 | AW59: 0 | AX59: 0 | AY59: 0 | BA59: 0 | BB59: 0 | BC59: 0 | BD59: 0 | BE59: 0 | CA59: 491 | CB59: 0 | CC59: 0 | CD59: 0 | CE59: 0 | CF59: 0 | CG59: 0 | CH59: 0 | CI59: 0 | CJ59: 0 | CK59: 0 | CM59: 491 | CR59: 0
A60: 492 | B60: MARTIN LUTHER KING JR CS OF EXCELLENCE | C60: 360 | F60: 0 | G60: 348 | I60: 6289317 | J60: 0 | K60: 413424 | L60: 6702741 | AA60: 492 | AB60: 348 | AC60: 0 | AD60: 0 | AE60: 0 | AF60: 6289317 | AG60: 0 | AH60: 0 | AI60: 6289317 | AJ60: 0 | AK60: 413424 | AL60: 6702741 | AM60: 0 | AN60: 0 | AO60: 0 | AP60: 0 | AQ60: 6702741 | AS60: 492 | AT60: 86 | AU60: 0 | AV60: 0 | AW60: 0 | AX60: 0 | AY60: 0 | BA60: 0 | BB60: 0 | BC60: 0 | BD60: 0 | BE60: 0 | CA60: 492 | CB60: 0 | CC60: 0 | CD60: 0 | CE60: 0 | CF60: 0 | CG60: 0 | CH60: 0 | CI60: 0 | CJ60: 0 | CK60: 0 | CM60: 492 | CR60: 0
A61: 493 | B61: PHOENIX ACADEMY CHELSEA | C61: 220 | F61: 0.3401479091 | G61: 194 | I61: 4282854 | J61: 0 | K61: 230472 | L61: 4513326 | AA61: 493 | AB61: 194 | AC61: 0 | AD61: 0 | AE61: 0.3401479091 | AF61: 4282854 | AG61: 8519.776253 | AH61: 0 | AI61: 4274334.224 | AJ61: 0 | AK61: 230069 | AL61: 4504403.224 | AM61: 8519.776253 | AN61: 0 | AO61: 403 | AP61: 8922.776253 | AQ61: 4513326 | AS61: 493 | AT61: 0 | AU61: 0.3401479091 | AV61: 8519.776253 | AW61: 0 | AX61: 403 | AY61: 8922.776253 | BA61: 0 | BB61: 0 | BC61: 0 | BD61: 0 | BE61: 0 | CA61: 493 | CB61: 0 | CC61: 0 | CD61: 0 | CE61: 0 | CF61: 0 | CG61: 0 | CH61: 0 | CI61: 0 | CJ61: 0 | CK61: 0 | CM61: 493 | CR61: 0
A62: 494 | B62: PIONEER CS OF SCIENCE | C62: 780 | F62: 2.226462169 | G62: 779 | I62: 13699153 | J62: 0 | K62: 925452 | L62: 14624605 | AA62: 494 | AB62: 779 | AC62: 0 | AD62: 0 | AE62: 2.226462169 | AF62: 13699153 | AG62: 37624.98419 | AH62: 0 | AI62: 13661528.02 | AJ62: 0 | AK62: 922811 | AL62: 14584339.02 | AM62: 37624.98419 | AN62: 0 | AO62: 2641 | AP62: 40265.98419 | AQ62: 14624605 | AS62: 494 | AT62: 360 | AU62: 2.226462169 | AV62: 37624.98419 | AW62: 0 | AX62: 2641 | AY62: 40265.98419 | BA62: 0 | BB62: 0 | BC62: 0 | BD62: 0 | BE62: 0 | CA62: 494 | CB62: 0 | CC62: 0 | CD62: 0 | CE62: 0 | CF62: 0 | CG62: 0 | CH62: 0 | CI62: 0 | CJ62: 0 | CK62: 0 | CM62: 494 | CR62: 0
A63: 496 | B63: GLOBAL LEARNING | C63: 500 | D63: 2 | F63: 0 | G63: 502 | I63: 8706486 | J63: 255119 | K63: 593866 | L63: 9555471 | AA63: 496 | AB63: 502 | AC63: 2 | AD63: 0 | AE63: 0 | AF63: 8706486 | AG63: 0 | AH63: 0 | AI63: 8706486 | AJ63: 0 | AK63: 593866 | AL63: 9300352 | AM63: 0 | AN63: 0 | AO63: 0 | AP63: 0 | AQ63: 9300352 | AS63: 496 | AT63: 60 | AU63: 0 | AV63: 0 | AW63: 0 | AX63: 0 | AY63: 0 | BA63: 0 | BB63: 0 | BC63: 0 | BD63: 0 | BE63: 0 | CA63: 496 | CB63: 0 | CC63: 0 | CD63: 0 | CE63: 0 | CF63: 0 | CG63: 0 | CH63: 0 | CI63: 0 | CJ63: 0 | CK63: 0 | CM63: 496 | CR63: 0
A64: 497 | B64: PIONEER VALLEY CHINESE IMMERSION | C64: 584 | F64: 0 | G64: 552 | I64: 9281274 | J64: 0 | K64: 654688 | L64: 9935962 | AA64: 497 | AB64: 552 | AC64: 0 | AD64: 0 | AE64: 0 | AF64: 9296838 | AG64: 0 | AH64: 0 | AI64: 9296838 | AJ64: 0 | AK64: 655776 | AL64: 9952614 | AM64: 0 | AN64: 0 | AO64: 0 | AP64: 0 | AQ64: 9952614 | AS64: 497 | AT64: 78 | AU64: 0 | AV64: 0 | AW64: 0 | AX64: 0 | AY64: 0 | BA64: 0 | BB64: 0 | BC64: 0 | BD64: 0 | BE64: 0 | CA64: 497 | CB64: 0 | CC64: -15564 | CD64: 0 | CE64: -1088 | CF64: -16652 | CG64: 0 | CH64: 0 | CI64: 0 | CJ64: 0 | CK64: -16652 | CM64: 497 | CR64: 0
A65: 498 | B65: VERITAS PREPARATORY | C65: 604 | D65: 11 | F65: 0 | G65: 615 | I65: 10734825 | J65: 0 | K65: 717705 | L65: 11452530 | AA65: 498 | AB65: 615 | AC65: 11 | AD65: 0 | AE65: 0 | AF65: 10734825 | AG65: 0 | AH65: 0 | AI65: 10734825 | AJ65: 0 | AK65: 717705 | AL65: 11452530 | AM65: 0 | AN65: 0 | AO65: 0 | AP65: 0 | AQ65: 11452530 | AS65: 498 | AT65: 51 | AU65: 0 | AV65: 0 | AW65: 0 | AX65: 0 | AY65: 0 | BA65: 0 | BB65: 0 | BC65: 0 | BD65: 0 | BE65: 0 | CA65: 498 | CB65: 0 | CC65: 0 | CD65: 0 | CE65: 0 | CF65: 0 | CG65: 0 | CH65: 0 | CI65: 0 | CJ65: 0 | CK65: 0 | CM65: 498 | CR65: 0
A66: 499 | B66: HAMPDEN CS OF SCIENCE EAST | C66: 560 | F66: 0 | G66: 553 | I66: =AF66-AG66-AH66+AM66+CC66+CG66 -> 9247806 | J66: 0 | K66: 656964 | L66: 9904770 | AA66: 499 | AB66: 553 | AC66: 0 | AD66: 0 | AE66: 0 | AF66: 9247806 | AG66: 0 | AH66: 0 | AI66: 9247806 | AJ66: 0 | AK66: 656964 | AL66: 9904770 | AM66: 0 | AN66: 0 | AO66: 0 | AP66: 0 | AQ66: 9904770 | AS66: 499 | AT66: 136 | AU66: 0 | AV66: 0 | AW66: 0 | AX66: 0 | AY66: 0 | BA66: 0 | BB66: 0 | BC66: 0 | BD66: 0 | BE66: 0 | CA66: 499 | CB66: 0 | CC66: 0 | CD66: 0 | CE66: 0 | CF66: 0 | CG66: 0 | CH66: 0 | CI66: 0 | CJ66: 0 | CK66: 0 | CM66: 499 | CR66: 0
A67: 3502 | B67: BAYSTATE ACADEMY | C67: 400 | D67: 14 | F67: 0 | G67: 414 | I67: 7301368 | J67: 0 | K67: 475272 | L67: 7776640 | AA67: 3502 | AB67: 414 | AC67: 14 | AD67: 0 | AE67: 0 | AF67: 7301368 | AG67: 0 | AH67: 0 | AI67: 7301368 | AJ67: 0 | AK67: 475272 | AL67: 7776640 | AM67: 0 | AN67: 0 | AO67: 0 | AP67: 0 | AQ67: 7776640 | AS67: 3501 | AT67: 51 | AU67: 0 | AV67: 0 | AW67: 0 | AX67: 0 | AY67: 0 | BA67: 0 | BB67: 0 | BC67: 0 | BD67: 0 | BE67: 0 | CA67: 3502 | CB67: 0 | CC67: 0 | CD67: 0 | CE67: 0 | CF67: 0 | CG67: 0 | CH67: 0 | CI67: 0 | CJ67: 0 | CK67: 0 | CM67: 3502 | CR67: 0
A68: 3503 | B68: COLLEGIATE CS OF LOWELL | C68: 1200 | D68: 11 | F68: 0 | G68: 1211 | I68: 20405690 | J68: 0 | K68: 1425347 | L68: 21831037 | AA68: 3503 | AB68: 1211 | AC68: 11 | AD68: 0 | AE68: 0 | AF68: 20405690 | AG68: 0 | AH68: 0 | AI68: 20405690 | AJ68: 0 | AK68: 1425347 | AL68: 21831037 | AM68: 0 | AN68: 0 | AO68: 0 | AP68: 0 | AQ68: 21831037 | AS68: 3502 | AT68: 12 | AU68: 0 | AV68: 0 | AW68: 0 | AX68: 0 | AY68: 0 | BA68: 0 | BB68: 0 | BC68: 0 | BD68: 0 | BE68: 0 | CA68: 3503 | CB68: 0 | CC68: 0 | CD68: 0 | CE68: 0 | CF68: 0 | CG68: 0 | CH68: 0 | CI68: 0 | CJ68: 0 | CK68: 0 | CM68: 3503 | CR68: 0
A69: 3506 | B69: PIONEER CS OF SCIENCE II | C69: 600 | F69: 16.31388441 | G69: 566 | I69: 9377436 | J69: 0 | K69: 673368 | L69: 10050804 | AA69: 3506 | AB69: 566 | AC69: 0 | AD69: 0 | AE69: 16.31388441 | AF69: 9364242 | AG69: 269265.4877 | AH69: 0 | AI69: 9094976.512 | AJ69: 0 | AK69: 653058 | AL69: 9748034.512 | AM69: 269265.4877 | AN69: 0 | AO69: 19350 | AP69: 288615.4877 | AQ69: 10036650 | AS69: 3503 | AT69: 155 | AU69: 16.31388441 | AV69: 269265.4877 | AW69: 0 | AX69: 19350 | AY69: 288615.4877 | BA69: 0 | BB69: 0 | BC69: 0 | BD69: 0 | BE69: 0 | CA69: 3506 | CB69: 0 | CC69: 17034.49416 | CD69: 0 | CE69: 1186 | CF69: 18220.49416 | CG69: -3840.494163 | CH69: 0 | CI69: -226 | CJ69: -4066.494163 | CK69: 14154 | CM69: 3506 | CR69: 0
A70: 3508 | B70: PHOENIX ACADEMY SPRINGFIELD | C70: 210 | F70: 0 | G70: 159 | I70: 3121796 | J70: 0 | K70: 188892 | L70: 3310688 | AA70: 3508 | AB70: 159 | AC70: 0 | AD70: 0 | AE70: 0 | AF70: 3121796 | AG70: 0 | AH70: 0 | AI70: 3121796 | AJ70: 0 | AK70: 188892 | AL70: 3310688 | AM70: 0 | AN70: 0 | AO70: 0 | AP70: 0 | AQ70: 3310688 | AS70: 3506 | AT70: 0 | AU70: 0 | AV70: 0 | AW70: 0 | AX70: 0 | AY70: 0 | BA70: 0 | BB70: 0 | BC70: 0 | BD70: 0 | BE70: 0 | CA70: 3508 | CB70: 0 | CC70: 0 | CD70: 0 | CE70: 0 | CF70: 0 | CG70: 0 | CH70: 0 | CI70: 0 | CJ70: 0 | CK70: 0 | CM70: 3508 | CR70: 0
A71: 3509 | B71: ARGOSY COLLEGIATE | C71: 600 | F71: 0 | G71: 574 | I71: 10395350 | J71: 0 | K71: 681912 | L71: 11077262 | AA71: 3509 | AB71: 574 | AC71: 0 | AD71: 0 | AE71: 0 | AF71: 10395350 | AG71: 0 | AH71: 0 | AI71: 10395350 | AJ71: 0 | AK71: 681912 | AL71: 11077262 | AM71: 0 | AN71: 0 | AO71: 0 | AP71: 0 | AQ71: 11077262 | AS71: 3508 | AT71: 94 | AU71: 0 | AV71: 0 | AW71: 0 | AX71: 0 | AY71: 0 | BA71: 0 | BB71: 0 | BC71: 0 | BD71: 0 | BE71: 0 | CA71: 3509 | CB71: 0 | CC71: 0 | CD71: 0 | CE71: 0 | CF71: 0 | CG71: 0 | CH71: 0 | CI71: 0 | CJ71: 0 | CK71: 0 | CM71: 3509 | CR71: 0
A72: 3510 | B72: SPRINGFIELD PREPARATORY | C72: 486 | D72: 1 | F72: 0 | G72: 487 | I72: 8205158 | J72: 0 | K72: 577582 | L72: 8782740 | AA72: 3510 | AB72: 487 | AC72: 1 | AD72: 0 | AE72: 0 | AF72: 8205158 | AG72: 0 | AH72: 0 | AI72: 8205158 | AJ72: 0 | AK72: 577582 | AL72: 8782740 | AM72: 0 | AN72: 0 | AO72: 0 | AP72: 0 | AQ72: 8782740 | AS72: 3509 | AT72: 52 | AU72: 0 | AV72: 0 | AW72: 0 | AX72: 0 | AY72: 0 | BA72: 0 | BB72: 0 | BC72: 0 | BD72: 0 | BE72: 0 | CA72: 3510 | CB72: 0 | CC72: 0 | CD72: 0 | CE72: 0 | CF72: 0 | CG72: 0 | CH72: 0 | CI72: 0 | CJ72: 0 | CK72: 0 | CM72: 3510 | CR72: 0
A73: 3513 | B73: NEW HEIGHTS CS OF BROCKTON | C73: 735 | F73: 4.124865259 | G73: 731 | I73: 12948220 | J73: 0 | K73: 868428 | L73: 13816648 | AA73: 3513 | AB73: 731 | AC73: 0 | AD73: 0 | AE73: 4.124865259 | AF73: 12948220 | AG73: 88305.11546 | AH73: 0 | AI73: 12859914.88 | AJ73: 0 | AK73: 863544 | AL73: 13723458.88 | AM73: 88305.11546 | AN73: 0 | AO73: 4884 | AP73: 93189.11546 | AQ73: 13816648 | AS73: 3510 | AT73: 86 | AU73: 4.124865259 | AV73: 88305.11546 | AW73: 0 | AX73: 4884 | AY73: 93189.11546 | BA73: 0 | BB73: 0 | BC73: 0 | BD73: 0 | BE73: 0 | CA73: 3513 | CB73: 0 | CC73: 0 | CD73: 0 | CE73: 0 | CF73: =SUM(CC73:CE73) -> 0 | CG73: 0 | CH73: 0 | CI73: 0 | CJ73: =SUM(CG73:CI73) -> 0 | CK73: =CF73+CJ73 -> 0 | CM73: 3513 | CR73: 0
A74: 3514 | B74: LIBERTAS ACADEMY | C74: 540 | F74: 0 | G74: 519 | I74: 9475947 | J74: 0 | K74: 616572 | L74: 10092519 | AA74: 3514 | AB74: 519 | AC74: 0 | AD74: 0 | AE74: 0 | AF74: 9475947 | AG74: 0 | AH74: 0 | AI74: 9475947 | AJ74: 0 | AK74: 616572 | AL74: 10092519 | AM74: 0 | AN74: 0 | AO74: 0 | AP74: 0 | AQ74: 10092519 | AS74: 3513 | AT74: 54 | AU74: 0 | AV74: 0 | AW74: 0 | AX74: 0 | AY74: 0 | BA74: 0 | BB74: 0 | BC74: 0 | BD74: 0 | BE74: 0 | CA74: 3514 | CB74: 0 | CC74: 0 | CD74: 0 | CE74: 0 | CF74: 0 | CG74: 0 | CH74: 0 | CI74: 0 | CJ74: 0 | CK74: 0 | CM74: 3514 | CR74: 0
A75: 3515 | B75: OLD STURBRIDGE ACADEMY | C75: 360 | D75: =IF(AC75=0,"",AC75) ->  | F75: =AU75 -> 0 | G75: =AB75 -> 348 | I75: =AF75-AG75-AH75+AM75+CC75+CG75 -> 5365625 | J75: 0 | K75: =AK75+AO75+CE75+CI75 -> 413424 | L75: =SUM(I75:K75) -> 5779049 | AA75: 3515 | AB75: 348 | AC75: 0 | AD75: 0 | AE75: 0 | AF75: 5365625 | AG75: 0 | AH75: 0 | AI75: 5365625 | AJ75: 0 | AK75: 413424 | AL75: 5779049 | AM75: 0 | AN75: 0 | AO75: 0 | AP75: 0 | AQ75: 5779049 | AS75: 3514 | AT75: 112 | AU75: 0 | AV75: 0 | AW75: 0 | AX75: 0 | AY75: 0 | BA75: 0 | BB75: 0 | BC75: 0 | BD75: 0 | BE75: 0 | CA75: 3515 | CB75: 0 | CC75: 0 | CD75: 0 | CE75: 0 | CF75: 0 | CG75: 0 | CH75: 0 | CI75: 0 | CJ75: 0 | CK75: 0 | CM75: 3515 | CR75: =SUM(CO75:CQ75) -> 0
A76: 3516 | B76: HAMPDEN CS OF SCIENCE WEST | C76: 426 | F76: 0 | G76: 394 | I76: 6821868 | J76: 0 | K76: 468072 | L76: 7289940 | AA76: 3516 | AB76: 394 | AC76: 0 | AD76: 0 | AE76: 0 | AF76: 6821868 | AG76: 0 | AH76: 0 | AI76: 6821868 | AJ76: 0 | AK76: 468072 | AL76: 7289940 | AM76: 0 | AN76: 0 | AO76: 0 | AP76: 0 | AQ76: 7289940 | AS76: 3515 | AT76: 70 | AU76: 0 | AV76: 0 | AW76: 0 | AX76: 0 | AY76: 0 | BA76: 0 | BB76: 0 | BC76: 0 | BD76: 0 | BE76: 0 | CA76: 3516 | CB76: 0 | CC76: 0 | CD76: 0 | CE76: 0 | CF76: 0 | CG76: 0 | CH76: 0 | CI76: 0 | CJ76: 0 | CK76: 0 | CM76: 3516 | CR76: 0
A77: 3517 | B77: MAP ACADEMY | C77: 275 | D77: 2 | F77: 0 | G77: 277 | I77: 5788305 | J77: 0 | K77: 326583 | L77: 6114888 | AA77: 3517 | AB77: 277 | AC77: 2 | AD77: 0 | AE77: 0 | AF77: 5788305 | AG77: 0 | AH77: 0 | AI77: 5788305 | AJ77: 0 | AK77: 326583 | AL77: 6114888 | AM77: 0 | AN77: 0 | AO77: 0 | AP77: 0 | AQ77: 6114888 | AS77: 3516 | AT77: 28 | AU77: 0 | AV77: 0 | AW77: 0 | AX77: 0 | AY77: 0 | BA77: 0 | BB77: 0 | BC77: 0 | BD77: 0 | BE77: 0 | CA77: 3517 | CB77: 0 | CC77: 0 | CD77: 0 | CE77: 0 | CF77: 0 | CG77: 0 | CH77: 0 | CI77: 0 | CJ77: 0 | CK77: 0 | CM77: 3517 | CR77: 0
A78: 3518 | B78: PHOENIX ACADEMY LAWRENCE | C78: 180 | F78: 0 | G78: 113 | I78: 2212213 | J78: 0 | K78: 134244 | L78: 2346457 | AA78: 3518 | AB78: 113 | AC78: 0 | AD78: 0 | AE78: 0 | AF78: 2212213 | AG78: 0 | AH78: 0 | AI78: 2212213 | AJ78: 0 | AK78: 134244 | AL78: 2346457 | AM78: 0 | AN78: 0 | AO78: 0 | AP78: 0 | AQ78: 2346457 | AS78: 3517 | AT78: 0 | AU78: 0 | AV78: 0 | AW78: 0 | AX78: 0 | AY78: 0 | BA78: 0 | BB78: 0 | BC78: 0 | BD78: 0 | BE78: 0 | CA78: 3518 | CB78: 0 | CC78: 0 | CD78: 0 | CE78: 0 | CF78: 0 | CG78: 0 | CH78: 0 | CI78: 0 | CJ78: =SUM(CG78:CI78) -> 0 | CK78: =CF78+CJ78 -> 0 | CM78: 3518 | CR78: 0
A79: 3519 | B79: WORCESTER CULTURAL ACADEMY | C79: 127 | D79: 9 | F79: 0 | G79: 136 | I79: 2190925 | J79: 0 | K79: 150824 | L79: 2341749 | AA79: 3519 | AB79: 136 | AC79: 9 | AD79: 0 | AE79: 0 | AF79: 2190925 | AG79: 0 | AH79: 0 | AI79: 2190925 | AJ79: 0 | AK79: 150824 | AL79: 2341749 | AM79: 0 | AN79: 0 | AO79: 0 | AP79: 0 | AQ79: 2341749 | AS79: 3518 | AT79: 3 | AU79: 0 | AV79: 0 | AW79: 0 | AX79: 0 | AY79: 0 | BA79: 0 | BB79: 0 | BC79: 0 | BD79: 0 | BE79: 0 | CA79: 3519 | CB79: 0 | CC79: 0 | CD79: 0 | CE79: 0 | CF79: 0 | CG79: 0 | CH79: 0 | CI79: 0 | CJ79: 0 | CK79: 0 | CM79: 3519 | CR79: 0
A81: 9999 | B81: STATE TOTAL | C81: =SUM(C7:C79) -> 47506 | D81: =SUM(D7:D79) -> 130 | E81: =SUM(E7:E79) -> 0 | F81: =SUM(F7:F79) -> 144.5293148 | G81: =SUM(G7:G79) -> 45832 | I81: =SUM(I7:I79) -> 884853494 | J81: =SUM(J7:J79) -> 5647496 | K81: =SUM(K7:K79) -> 54303685 | L81: =SUM(L7:L79) -> 944804675 | AA81: 9999 | AB81: =SUM(AB10:AB79) -> 45832 | AC81: 130 | AD81: 0 | AE81: 144.5293148 | AF81: 884651541 | AG81: 2783818.641 | AH81: 0 | AI81: 881867722.4 | AJ81: 0 | AK81: 54122440 | AL81: 935990162.4 | AM81: 2783818.641 | AN81: 0 | AO81: 171603 | AP81: 2955421.641 | AQ81: 938945584 | AS81: 9999 | AT81: =SUM(AT10:AT79) -> 11379 | AU81: 144.5293148 | AV81: 2783818.641 | AW81: 0 | AX81: 171603 | AY81: 2955421.641 | BA81: =SUM(BA10:BA79) -> 0 | BB81: =SUM(BB10:BB79) -> 0 | BC81: =SUM(BC10:BC79) -> 0 | BD81: =SUM(BD10:BD79) -> 0 | BE81: =SUM(BE10:BE79) -> 0 | CA81: 999 | CB81: =SUM(CB10:CB79) -> 8.98 | CC81: 201949 | CD81: 0 | CE81: 9702 | CF81: 211651 | CG81: 4 | CH81: 0 | CI81: -60 | CJ81: -56 | CK81: 211595 | CM81: 9999 | CN81: =SUM(CN10:CN79) -> 0 | CO81: =SUM(CO10:CO79) -> 0 | CP81: =SUM(CP10:CP79) -> 0 | CQ81: =SUM(CQ10:CQ79) -> 0 | CR81: =SUM(CR10:CR79) -> 0
K83: district only | L83: =AL81+CF81+J81 -> 941849309.4
K84: plus state | L84: =AP81+CJ81 -> 2955365.641
A87: 1 | B87: 2 | C87: 3 | D87: 4 | E87: 5 | F87: 6 | G87: 7 | H87: 8 | I87: 9 | J87: 10 | K87: 11 | L87: 12 | M87: 13 | N87: 14 | O87: 15 | P87: 16 | Q87: 17 | R87: 18 | S87: 19 | T87: 20 | U87: 21 | V87: 22 | W87: 23 | X87: 24 | Y87: 25 | Z87: 26 | AA87: 27 | AB87: 28 | AC87: 29 | AD87: 30 | AE87: 31 | AF87: 32 | AG87: 33 | AH87: 34 | AI87: 35 | AJ87: 36 | AK87: 37 | AL87: 38 | AM87: 39 | AN87: 40 | AO87: 41 | AP87: 42 | AQ87: 43 | AR87: 44 | AS87: 45 | AT87: 46 | AU87: 47 | AV87: 48 | AW87: 49 | AX87: 50 | AY87: 51 | AZ87: 52 | BA87: 53 | BB87: 54 | BC87: 55 | BD87: 56 | BE87: 57 | BF87: 58 | BG87: 59 | BH87: 60 | BI87: 61 | BJ87: 62 | BK87: 63 | BL87: 64 | BM87: 65 | BN87: 66 | BO87: 67 | BP87: 68 | BQ87: 69 | BR87: 70 | BS87: 71 | BT87: 72 | BU87: 73 | BV87: 74 | BW87: 75 | BX87: 76 | BY87: 77 | BZ87: 78 | CA87: 79 | CB87: 80 | CC87: 81 | CD87: 82 | CE87: 83 | CF87: 84 | CG87: 85 | CH87: 86 | CI87: 87 | CJ87: 88 | CK87: 89 | CL87: 90 | CM87: 91 | CN87: 92 | CO87: 93 | CP87: 94 | CQ87: 95 | CR87: 96 | CS87: 97
